bitfinex/quotes_ETHUSD_20240718
["timestamp","ask_amount","ask_price","bid_price","bid_amount"]
[1721314157031,2.91681,3428.4,3427.5,2.91751]
[1721314157232,2.91681,3428.4,3426.8,2.91812]
[1721314157233,2.91623,3429.1,3427.8,0.03093585]
[1721314157580,2.91623,3429.1,3428.0,2.91709]
[1721314157581,2.91634,3429.0,3428.0,2.91709]
[1721314157882,2.91634,3429.0,3427.6,2.3064]
[1721314157883,0.4841912,3429.8,3428.1,0.03080407]
[1721314158044,2.91616,3429.2,3427.6,5.22388]
[1721314158395,2.91616,3429.2,3426.2,3.0]
[1721314158396,5.83378,3428.3,3428.2,0.03076015]
[1721314158532,5.83378,3428.3,3426.3,2.2544]
[1721314158533,2.91784,3427.2,3426.3,2.2544]
[1721314158732,2.91784,3427.2,3426.4,2.9185]
[1721314158961,2.91775,3427.3,3426.5,2.91842]
[1721314159299,2.91792,3427.1,3426.5,0.03150715]
[1721314159506,6.500268,3428.3,3426.4,2.9185]
[1721314159507,2.91775,3427.3,3426.4,2.9185]
[1721314159790,2.91772,3427.4,3426.6,0.03146319]
[1721314159999,2.91712,3428.1,3427.0,2.91793]
[1721314160183,2.91732,3427.8,3426.7,2.94964923]
[1721314160390,2.91754,3427.6,3426.7,2.94964923]
[1721314160556,2.91734,3427.8,3426.7,0.03141923]
[1721314160557,2.91764,3427.5,3426.7,0.03141923]
[1721314160756,2.91698,3428.2,3426.7,0.03141923]
[1721314160757,2.91698,3428.2,3427.2,2.91782]
[1721314160959,0.583378,3428.3,3426.4,5.97949]
[1721314161159,2.91599,3429.4,3426.2,2.91861]
[1721314161160,2.91673,3428.5,3427.6,2.91749]
[1721314161450,5.31197,3429.0,3427.4,2.91758]
[1721314161697,5.31197,3429.0,3427.7,0.03097978]
[1721314161698,2.91732,3427.8,3427.7,0.03097978]
[1721314161996,2.91718,3428.0,3427.1,2.91791]
[1721314162200,2.91724,3427.9,3427.1,2.91791]
[1721314162499,2.91716,3428.0,3427.2,2.94904399]
[1721314162793,2.91691,3428.3,3427.3,2.91774]
[1721314162970,3.89454953,3428.9,3427.2,0.03121399]
[1721314162971,2.91656,3428.7,3427.6,2.91743]
[1721314163167,2.91656,3428.7,3427.4,2.34132611]
[1721314163407,2.91656,3428.7,3427.7,0.03100882]
[1721314163564,2.91656,3428.7,3427.9,2.91722]
[1721314163760,2.91656,3428.7,3427.4,2.3102]
[1721314163761,2.91638,3429.0,3428.2,2.91689]
[1721314164112,2.91614,3429.2,3428.4,2.91679]
[1721314164257,2.91562,3429.8,3428.3,2.94762527]
[1721314164459,2.91562,3429.8,3427.4,2.3102]
[1721314164460,2.91577,3429.7,3428.6,2.91663]
[1721314164667,2.91579,3429.6,3428.6,2.91663]
[1721314164904,2.91579,3429.6,3428.7,0.03048091]
[1721314165231,3.207459,3429.5,3428.7,2.94703091]
[1721314165710,2.91588,3429.5,3428.7,2.94703091]
[1721314165996,2.91579,3429.6,3428.7,0.03048091]
[1721314166308,2.91579,3429.6,3428.8,2.91646]
[1721314166528,2.91562,3429.8,3428.9,2.91633]
[1721314166818,2.91571,3429.7,3428.9,2.94650156]
[1721314167419,2.91554,3429.9,3428.9,2.94650156]
[1721314167588,3.16097,3430.1,3428.9,0.03019156]
[1721314167589,2.91579,3429.6,3428.9,0.03019156]
[1721314167776,2.91585,3429.6,3428.9,0.03019156]
[1721314167973,2.91585,3429.6,3428.1,2.91705]
[1721314167974,2.91585,3429.6,3428.7,2.91649]
[1721314168201,2.91585,3429.6,3428.8,2.91646]
[1721314168403,2.91564,3429.8,3428.8,2.9465939]
[1721314168715,2.91571,3429.7,3428.9,2.91633]
[1721314168893,2.91571,3429.7,3428.9,2.94642]
[1721314169108,3.161,3430.1,3428.9,0.03009]
[1721314169431,2.91542,3430.1,3429.1,2.9162]
[1721314169793,2.91534,3430.2,3429.2,2.94607831]
[1721314169998,2.91545,3430.0,3429.2,2.94607831]
[1721314170421,2.91534,3430.2,3429.3,2.91603]
[1721314170620,2.91525,3430.3,3429.4,2.91595]
[1721314170900,3.498287,3430.3,3429.4,2.94579474]
[1721314171096,0.583037,3430.3,3429.6,2.91578]
[1721314171297,0.583037,3430.3,3429.5,0.02980085]
[1721314171500,0.583037,3430.3,3429.7,0.02971308]
[1721314171501,2.91538,3430.1,3429.7,0.02971308]
[1721314171820,0.3498417,3430.0,3429.4,2.91595]
[1721314171990,2.91537,3430.1,3429.8,0.02965148]
[1721314172194,3.498287,3430.3,3429.4,2.91595]
[1721314172438,3.498287,3430.3,3429.9,0.0296076]
[1721314172439,2.91525,3430.3,3429.9,0.0296076]
[1721314172626,2.91506,3430.5,3429.6,2.91577]
[1721314172793,3.0,3431.2,3430.0,0.02953633]
[1721314172794,2.91486,3430.7,3430.0,0.02953633]
[1721314172995,2.91465,3431.0,3430.2,2.91527]
[1721314173452,2.91465,3431.0,3430.3,0.02935317]
[1721314173605,2.91449,3431.2,3430.4,2.9151]
[1721314174035,2.91428,3431.4,3430.5,0.02926544]
[1721314174239,0.291383,3431.9,3431.0,2.91454]
[1721314174446,2.9139,3431.9,3431.0,2.91454]
[1721314174655,2.9139,3431.9,3431.1,2.94349588]
[1721314174820,2.9139,3431.9,3431.1,0.02899588]
[1721314175002,2.91368,3432.1,3431.1,0.02899588]
[1721314175003,2.9138,3432.0,3431.1,2.94349588]
[1721314175203,2.91368,3432.1,3431.3,2.91433]
[1721314175503,0.582715,3432.1,3431.4,2.94311436]
[1721314175750,0.582715,3432.1,3431.4,0.02886436]
[1721314175899,2.91293,3433.0,3431.4,0.02886436]
[1721314176105,2.91333,3432.5,3431.5,2.91411]
[1721314176407,2.91333,3432.5,3431.7,2.914]
[1721314176618,2.91342,3432.4,3431.5,2.94293053]
[1721314176943,2.91351,3432.3,3431.2,2.91442]
[1721314177103,0.291351,3432.3,3431.6,0.02877669]
[1721314177305,3.204841,3432.3,3431.6,2.91408]
[1721314177614,2.91325,3432.6,3431.7,0.02873286]
[1721314177820,2.91343,3432.4,3431.7,0.02873286]
[1721314178001,2.3996,3433.3,3431.7,0.02873286]
[1721314178002,2.91312,3432.8,3431.8,2.91385]
[1721314178198,2.91312,3432.8,3431.7,0.02873286]
[1721314178399,2.91312,3432.8,3431.9,2.94247521]
[1721314178651,2.91312,3432.8,3431.7,2.914]
[1721314178652,3.64311872,3432.8,3432.0,2.91375]
[1721314178853,3.64311872,3432.8,3432.0,2.94173938]
[1721314179053,3.64311872,3432.8,3432.0,0.02798938]
[1721314179054,0.72999872,3432.8,3432.0,0.02798938]
[1721314179342,1.47402718,3432.9,3432.0,2.4885]
[1721314179506,1.47402718,3432.9,3432.3,2.91343]
[1721314179708,1.47402718,3432.9,3432.3,2.91348]
[1721314179909,2.91309,3432.8,3432.4,0.02781412]
[1721314180120,2.91283,3433.1,3432.0,5.40224]
[1721314180329,2.91269,3433.3,3432.5,0.02777031]
[1721314180540,2.91269,3433.3,3432.4,2.91341]
[1721314180741,2.91275,3433.2,3432.6,0.03142939]
[1721314181045,2.91239,3433.6,3432.5,2.91325]
[1721314181247,2.4544,3434.0,3432.7,0.03137885]
[1721314181461,2.4544,3434.0,3432.0,2.4885]
[1721314181462,2.91284,3433.1,3432.6,0.03142939]
[1721314181668,5.82596,3432.9,3432.8,0.03132831]
[1721314181807,5.82596,3432.9,3432.7,0.02911683]
[1721314181808,2.91307,3432.8,3432.7,0.02911683]
[1721314182006,2.91307,3432.8,3431.4,2.4626]
[1721314182007,2.91298,3432.9,3431.8,2.91392]
[1721314182249,2.91318,3432.7,3431.9,2.91377]
[1721314182539,0.291318,3432.6,3432.1,2.91364]
[1721314182756,2.91273,3433.2,3432.3,2.91348]
[1721314183054,2.91229,3433.8,3432.7,2.91315]
[1721314183055,2.9124,3433.6,3432.7,2.91315]
[1721314183267,2.91143,3434.8,3432.8,2.4691]
[1721314183407,2.372,3435.3,3432.9,2.91291]
[1721314183408,2.91216,3433.9,3432.9,2.91291]
[1721314183609,2.91216,3433.9,3433.1,2.91281]
[1721314183915,2.91218,3433.9,3433.2,0.0336959]
[1721314184110,2.91218,3433.9,3432.3,2.91349]
[1721314184111,2.91282,3433.1,3432.3,2.91342]
[1721314184442,2.91282,3433.1,3432.0,2.91374]
[1721314184443,0.291282,3433.0,3432.0,2.91374]
[1721314184609,0.291282,3433.0,3432.3,2.91347]
[1721314184812,3.204262,3433.0,3432.1,2.91361]
[1721314185054,2.913,3432.9,3432.1,2.91361]
[1721314185217,2.91325,3432.6,3431.7,2.91399]
[1721314185421,0.582633,3432.6,3431.7,2.91399]
[1721314185647,0.582633,3432.6,3431.6,2.3096]
[1721314185648,2.91308,3432.8,3432.0,2.91374]
[1721314185820,2.91308,3432.8,3431.6,2.3096]
[1721314185821,2.91307,3432.8,3431.6,2.3096]
[1721314186023,0.291282,3433.0,3432.2,2.91358]
[1721314186231,2.91258,3433.4,3431.8,2.91392]
[1721314186528,2.91266,3433.3,3432.4,2.91333]
[1721314186739,2.91274,3433.2,3432.4,2.91333]
[1721314186954,2.2836,3433.7,3432.4,2.91333]
[1721314187111,2.91257,3433.4,3432.5,2.91327]
[1721314187313,0.810848,3433.4,3432.7,2.91315]
[1721314187757,2.91231,3433.7,3432.7,2.91315]
[1721314187959,2.91231,3433.7,3432.9,2.91292]
[1721314188167,2.91231,3433.7,3432.7,2.91315]
[1721314188168,2.91222,3433.8,3432.8,2.91304]
[1721314188473,2.453,3434.3,3432.5,2.4789]
[1721314188474,2.91189,3434.2,3432.6,0.05825043]
[1721314188645,2.91189,3434.2,3433.1,2.91275]
[1721314188842,2.453,3434.3,3433.1,2.91275]
[1721314188843,3.448469,3434.1,3433.1,2.91275]
[1721314189075,0.536489,3434.1,3432.7,0.55]
[1721314189234,0.536489,3434.1,3433.3,2.91259]
[1721314189444,2.9117,3434.5,3433.5,2.91242]
[1721314189637,2.9115,3434.7,3433.4,2.91256]
[1721314189638,2.91172,3434.4,3433.6,2.91239]
[1721314189975,2.9115,3434.7,3433.7,2.9123]
[1721314190265,2.91144,3434.8,3433.8,2.97039522]
[1721314190481,2.91129,3434.9,3433.9,2.9121]
[1721314190646,2.91129,3434.9,3433.0,2.91288]
[1721314190647,3.202509,3434.8,3434.0,2.91204]
[1721314190828,3.202509,3434.8,3433.0,5.97388]
[1721314190829,0.291129,3434.8,3434.1,2.91196]
[1721314191144,0.291129,3434.8,3434.0,2.91199]
[1721314191145,3.202509,3434.8,3434.0,2.91199]
[1721314191329,3.202509,3434.8,3434.1,2.91193]
[1721314191330,0.291129,3434.8,3434.1,2.91193]
[1721314191532,2.91078,3435.6,3433.8,0.05823002]
[1721314191776,2.91092,3435.4,3434.4,2.91166]
[1721314192086,2.4191,3436.0,3434.2,2.91183]
[1721314192087,2.91118,3435.1,3434.2,2.91183]
[1721314192255,2.91118,3435.1,3434.3,2.91179]
[1721314192430,2.91107,3435.2,3434.2,5.82365]
[1721314192635,0.582195,3435.1,3434.4,0.03935521]
[1721314192847,2.91082,3435.5,3434.3,0.03942085]
[1721314193043,2.91164,3434.5,3433.7,2.91229]
[1721314193226,2.91115,3435.1,3434.3,2.91179]
[1721314193461,2.911,3435.3,3434.4,2.9117]
[1721314193770,2.91087,3435.4,3434.3,2.91176]
[1721314193931,0.291087,3435.3,3433.3,3.5]
[1721314194133,2.91104,3435.2,3433.4,6.58173919]
[1721314194357,2.91114,3435.1,3434.2,2.91185]
[1721314194573,2.9113,3434.9,3434.0,2.91202]
[1721314194742,0.05,3435.9,3433.6,2.91233]
[1721314194743,2.91156,3434.6,3433.6,2.91233]
[1721314194944,2.91143,3434.8,3433.9,2.91208]
[1721314195254,0.05,3435.9,3433.9,2.91213]
[1721314195255,2.91115,3435.1,3433.9,2.91213]
[1721314195575,2.9113,3434.9,3433.9,2.91208]
[1721314195885,0.05,3435.9,3433.5,5.9734]
[1721314195886,2.91087,3435.4,3434.3,2.91178]
[1721314196030,2.91087,3435.4,3434.5,2.91162]
[1721314196231,2.91078,3435.5,3434.7,2.91144]
[1721314196430,2.91078,3435.5,3434.4,3.46168]
[1721314196431,2.91086,3435.4,3434.5,2.91156]
[1721314196644,2.91118,3435.1,3434.4,0.55]
[1721314196852,2.91112,3435.1,3434.1,5.34561]
[1721314197101,2.91137,3434.9,3434.1,2.4337]
[1721314197245,2.91137,3434.9,3433.9,2.91212]
[1721314197443,2.91137,3434.9,3434.1,2.91191]
[1721314197748,2.91137,3434.9,3434.2,2.91187]
[1721314198303,3.493632,3434.8,3433.8,2.91221]
[1721314198453,3.493632,3434.8,3433.9,3.46213]
[1721314198650,2.91109,3435.2,3434.4,2.91166]
[1721314198960,2.91056,3435.8,3434.2,2.91182]
[1721314198961,2.91117,3435.1,3434.2,2.91182]
[1721314199290,2.91117,3435.1,3433.9,0.55]
[1721314199291,2.91095,3435.3,3434.5,2.91157]
[1721314199665,2.91076,3435.6,3434.7,2.91138]
[1721314199666,2.91077,3435.6,3434.7,2.91138]
[1721314199982,0.291076,3435.5,3432.2,4.65953]
[1721314200185,2.9111,3435.2,3434.3,2.91179]
[1721314200547,0.291076,3435.5,3433.9,0.05821626]
[1721314200548,2.91154,3434.6,3433.9,2.91208]
[1721314200749,0.291076,3435.5,3433.3,2.91259]
[1721314200750,2.91195,3434.2,3433.3,2.91259]
[1721314201006,3.201876,3435.5,3433.1,2.91279]
[1721314201007,3.203165,3434.1,3433.1,2.91279]
[1721314201299,3.203165,3434.1,3432.4,2.2771]
[1721314201300,2.91241,3433.6,3432.8,2.91305]
[1721314201449,2.91223,3433.8,3432.4,2.33534361]
[1721314201450,2.91229,3433.8,3432.5,0.05824733]
[1721314201648,2.91211,3434.0,3433.0,2.91283]
[1721314201891,3.203245,3434.1,3433.0,2.91283]
[1721314201892,2.91222,3433.8,3433.0,2.91283]
[1721314202046,3.203245,3434.1,3432.4,2.9134]
[1721314202047,2.777222,3433.7,3432.4,2.9134]
[1721314202252,2.91292,3433.0,3431.6,2.3608]
[1721314202451,2.91246,3433.6,3432.7,2.91309]
[1721314202684,2.91257,3433.4,3432.3,2.91349]
[1721314202856,2.486,3433.7,3431.8,2.97216775]
[1721314203067,2.91258,3433.4,3432.4,2.95586863]
[1721314203279,0.2486,3433.6,3432.5,0.05825049]
[1721314203482,0.2486,3433.6,3432.4,2.91333]
[1721314203690,0.291195,3434.1,3432.7,2.2789]
[1721314203850,2.91179,3434.4,3433.5,2.91241]
[1721314204055,2.91165,3434.5,3433.6,0.55]
[1721314204358,2.91174,3434.4,3433.6,0.55]
[1721314204553,2.91139,3434.8,3433.9,2.91207]
[1721314204808,2.91111,3435.2,3434.1,2.2537]
[1721314204957,0.291111,3435.2,3434.1,2.2537]
[1721314205154,0.291111,3435.2,3433.7,0.05822621]
[1721314205155,2.91105,3435.2,3433.7,0.05822621]
[1721314205393,2.91114,3435.1,3434.1,2.91197]
[1721314205603,2.91095,3435.3,3434.2,0.55]
[1721314205891,2.91121,3435.0,3434.2,0.55]
[1721314206091,0.05,3435.9,3434.3,2.91179]
[1721314206092,2.91094,3435.4,3434.3,2.91179]
[1721314206295,2.91104,3435.2,3434.4,0.55]
[1721314206493,2.91114,3435.1,3434.2,3.46187]
[1721314206729,0.291094,3435.3,3434.2,0.55]
[1721314206730,2.91123,3435.0,3434.2,0.55]
[1721314206998,0.291094,3435.3,3433.7,0.09044849]
[1721314206999,2.91152,3434.7,3433.8,2.9122]
[1721314207197,2.91152,3434.7,3433.9,3.46211]
[1721314207405,2.91155,3434.6,3433.9,0.55]
[1721314207556,2.91155,3434.6,3433.8,0.55]
[1721314207557,0.582291,3434.6,3433.8,0.55]
[1721314207760,2.91131,3434.9,3433.8,0.55]
[1721314207997,2.91123,3435.0,3434.0,2.91204]
[1721314208202,2.91113,3435.1,3434.1,0.55]
[1721314208509,2.91118,3435.1,3434.1,3.46194]
[1721314208813,0.05,3435.9,3434.1,0.55]
[1721314209014,2.91079,3435.5,3434.1,0.55]
[1721314209317,0.05,3435.9,3434.3,2.91174]
[1721314209318,2.91109,3435.2,3434.3,2.91174]
[1721314209519,0.05,3435.9,3434.1,3.46197]
[1721314209520,2.91082,3435.5,3434.4,0.55]
[1721314209687,2.91082,3435.5,3434.4,0.60822008]
[1721314209883,2.91071,3435.6,3434.4,0.60822008]
[1721314210095,0.05,3435.9,3434.4,0.55]
[1721314210096,0.291071,3435.5,3434.4,0.55]
[1721314210417,0.291071,3435.5,3434.4,2.9117]
[1721314210418,2.91101,3435.3,3434.4,2.9117]
[1721314210634,0.05,3435.9,3434.5,3.46161]
[1721314210635,2.91087,3435.4,3434.5,3.46161]
[1721314210914,2.91095,3435.3,3434.5,3.46161]
[1721314211124,2.91112,3435.1,3434.5,0.55]
[1721314211277,0.291112,3435.0,3433.7,0.09044849]
[1721314211483,2.91151,3434.7,3433.8,0.05822352]
[1721314211718,2.2516,3435.5,3434.2,2.91182]
[1721314212023,2.91143,3434.8,3433.8,2.97042027]
[1721314212229,2.2516,3435.5,3434.3,2.91175]
[1721314212230,2.9111,3435.2,3434.3,2.91175]
[1721314212378,2.91114,3435.1,3434.3,2.91175]
[1721314212587,2.9111,3435.2,3434.2,2.91181]
[1721314212913,2.91097,3435.3,3434.2,2.91188]
[1721314213084,2.91087,3435.4,3433.7,0.09044849]
[1721314213085,2.91078,3435.5,3434.5,2.91162]
[1721314213423,2.91088,3435.4,3434.6,3.46154]
[1721314213625,0.05,3435.9,3434.7,0.55]
[1721314213626,2.91095,3435.3,3434.7,0.55]
[1721314213831,2.91084,3435.5,3434.7,3.46145]
[1721314214199,2.91056,3435.8,3434.9,2.91128]
[1721314214395,0.05,3435.9,3435.0,3.4612]
[1721314214594,2.91054,3435.8,3435.0,3.4612]
[1721314214929,2.96044,3435.9,3435.0,0.55]
[1721314215128,2.91054,3435.8,3435.0,3.46117]
[1721314215284,2.9107,3435.6,3435.0,0.55]
[1721314215484,0.05,3435.9,3434.6,5.97251]
[1721314215485,0.05,3435.9,3435.3,2.9109]
[1721314215719,0.05,3435.9,3434.9,0.60821073]
[1721314215720,2.91053,3435.8,3434.9,0.55]
[1721314215890,0.05,3435.9,3434.7,0.55]
[1721314216091,0.05,3435.9,3434.5,2.2775]
[1721314216092,2.91092,3435.4,3434.5,2.2775]
[1721314216304,0.05,3435.9,3434.6,0.55]
[1721314216531,0.05,3435.9,3434.6,3.46148]
[1721314216532,2.91087,3435.4,3434.6,3.46148]
[1721314216691,0.05,3435.9,3434.6,3.46148]
[1721314216692,2.91096,3435.3,3434.6,0.55]
[1721314217030,2.91112,3435.1,3434.6,0.55]
[1721314217252,2.91055,3435.8,3434.6,0.60821956]
[1721314217427,0.05,3435.9,3434.6,0.60821956]
[1721314217725,0.05,3435.9,3435.2,2.911]
[1721314217885,0.05,3435.9,3434.7,3.55820526]
[1721314217886,2.96045,3435.9,3435.0,2.91116]
[1721314218083,2.96045,3435.9,3435.1,0.55]
[1721314218340,0.05,3435.9,3435.1,3.46112]
[1721314218831,0.05,3435.9,3435.5,2.91077]
[1721314219203,0.05,3435.9,3435.1,0.55]
[1721314219204,0.05,3435.9,3435.7,2.91061]
[1721314219393,0.05,3435.9,3435.5,2.91074]
[1721314219729,0.05,3435.9,3435.6,0.55]
[1721314219897,2.91078,3435.5,3434.2,2.86392964]
[1721314220099,2.91082,3435.5,3434.3,2.96994402]
[1721314220342,0.05,3435.9,3434.4,3.0]
[1721314220484,0.05,3435.9,3434.2,2.2586]
[1721314220485,0.05,3435.9,3434.5,3.0602319]
[1721314220792,0.05,3435.9,3435.5,2.91072]
[1721314220989,0.05,3435.9,3435.6,2.91068]
[1721314221314,2.90889,3437.8,3436.6,2.90982]
[1721314221531,2.3613,3438.6,3436.7,0.55]
[1721314221879,2.3613,3438.6,3436.3,2.91009]
[1721314221880,2.90933,3437.3,3436.3,2.91009]
[1721314221988,2.90909,3437.5,3436.4,0.55]
[1721314222190,2.3613,3438.6,3436.4,3.46001]
[1721314222191,2.90897,3437.7,3436.4,3.46001]
[1721314222390,2.3613,3438.6,3436.4,3.46001]
[1721314222391,2.9092,3437.4,3436.4,3.46001]
[1721314222828,2.90909,3437.5,3436.6,2.90983]
[1721314223002,2.90896,3437.7,3436.4,3.46002]
[1721314223213,2.90885,3437.8,3436.8,2.9096]
[1721314223402,2.90893,3437.7,3436.8,2.9096]
[1721314223603,2.9083,3438.5,3436.8,2.9096]
[1721314223604,2.90902,3437.6,3436.8,0.34071885]
[1721314223805,2.90909,3437.5,3436.6,2.90984]
[1721314224005,2.90909,3437.5,3436.4,0.55]
[1721314224006,2.90935,3437.2,3436.4,0.55]
[1721314224201,2.90935,3437.2,3436.3,0.55]
[1721314224423,5.26947,3438.6,3436.1,2.96844491]
[1721314224424,2.90921,3437.4,3436.2,0.55]
[1721314224630,2.90909,3437.5,3436.6,2.90984]
[1721314224832,0.581802,3437.5,3435.9,2.2586]
[1721314225038,0.581802,3437.5,3435.3,2.401]
[1721314225039,2.91002,3436.4,3435.3,2.401]
[1721314225333,2.91011,3436.3,3435.5,2.91075]
[1721314225692,2.3166,3437.6,3435.3,2.401]
[1721314225949,2.90992,3436.6,3435.3,2.401]
[1721314226234,2.91008,3436.4,3435.6,2.91069]
[1721314226536,2.91003,3436.4,3435.6,2.91069]
[1721314226829,2.9091,3437.5,3435.3,2.91094]
[1721314226830,2.91028,3436.1,3435.3,2.91094]
[1721314227034,2.9091,3437.5,3435.1,3.0]
[1721314227035,2.9102,3436.2,3435.1,2.91111]
[1721314227208,5.17169,3436.6,3434.7,5.40343]
[1721314227209,2.91037,3436.0,3434.7,5.40343]
[1721314227417,2.9102,3436.2,3435.3,2.91089]
[1721314227612,2.2618,3436.6,3435.1,2.91106]
[1721314227817,2.91043,3436.0,3435.1,2.91106]
[1721314228143,2.91044,3435.9,3435.1,2.91106]
[1721314228299,2.2618,3436.6,3435.0,0.05820711]
[1721314228504,2.9097,3436.8,3435.2,2.91103]
[1721314228733,2.90982,3436.7,3435.8,2.91047]
[1721314229242,2.91018,3436.3,3435.3,0.55]
[1721314229459,2.91014,3436.3,3434.7,5.4034]
[1721314229662,2.91046,3435.9,3434.7,2.9114]
[1721314229978,2.91071,3435.6,3434.8,2.91137]
[1721314230112,3.201506,3435.9,3435.1,2.91106]
[1721314230113,0.291046,3435.9,3435.1,2.91106]
[1721314230318,2.3949,3436.6,3435.1,2.91109]
[1721314230319,2.90999,3436.5,3435.1,2.91109]
[1721314230517,2.91007,3436.4,3435.4,2.91086]
[1721314230815,2.91007,3436.4,3435.6,2.91069]
[1721314231555,5.30476,3436.6,3435.7,2.91059]
[1721314231556,5.30481,3436.6,3435.7,2.91059]
[1721314231855,5.30481,3436.6,3435.7,3.52098627]
[1721314232069,2.91004,3436.4,3435.7,0.06039627]
[1721314232362,2.3949,3436.6,3435.7,0.06039627]
[1721314232563,2.91045,3435.9,3435.0,2.9112]
[1721314232714,2.91033,3436.1,3434.7,2.91143]
[1721314232920,5.82134,3435.7,3434.6,3.00194478]
[1721314233121,2.91065,3435.7,3434.6,3.00194478]
[1721314233356,2.3949,3436.6,3434.6,0.09042478]
[1721314233567,2.3949,3436.6,3434.6,3.00191478]
[1721314233568,2.91085,3435.5,3434.6,3.00191478]
[1721314233729,2.3949,3436.6,3434.9,2.91129]
[1721314233730,2.91058,3435.8,3434.9,2.91129]
[1721314234049,2.91058,3435.8,3435.0,2.9112]
[1721314234251,2.3949,3436.6,3434.8,2.91136]
[1721314234466,2.3949,3436.6,3434.6,0.09042478]
[1721314234467,2.91094,3435.4,3434.6,0.09042478]
[1721314234680,2.91094,3435.4,3434.1,3.5]
[1721314234681,2.91112,3435.1,3434.3,2.91174]
[1721314234829,2.91088,3435.4,3433.8,2.91215]
[1721314234830,2.91087,3435.4,3433.8,2.91215]
[1721314235028,2.91087,3435.4,3433.7,4.42452349]
[1721314235029,2.91087,3435.4,3434.2,2.91185]
[1721314235263,2.3609,3435.5,3434.5,2.91155]
[1721314235437,2.91071,3435.6,3434.5,2.91155]
[1721314235755,2.91045,3435.9,3435.0,2.91115]
[1721314235959,2.91044,3435.9,3434.8,2.91137]
[1721314236158,2.4154,3436.0,3434.4,2.91169]
[1721314236327,5.3258,3436.0,3434.5,0.55]
[1721314236762,2.91088,3435.4,3434.5,3.46158]
[1721314237065,2.91104,3435.2,3434.5,0.55]
[1721314237272,2.91095,3435.3,3434.5,2.9116]
[1721314237440,2.91128,3435.0,3434.6,0.05851522]
[1721314237648,2.4154,3436.0,3433.9,2.91213]
[1721314237953,2.91083,3435.5,3434.7,2.9699204]
[1721314238150,2.9105,3435.9,3434.9,2.91129]
[1721314238330,2.4154,3436.0,3434.8,0.05842558]
[1721314238331,2.91113,3435.1,3434.8,0.05842558]
[1721314238563,2.91113,3435.1,3434.2,2.91187]
[1721314238564,2.91124,3435.0,3434.2,2.91187]
[1721314238941,2.91104,3435.2,3434.3,0.55]
[1721314239140,2.91104,3435.2,3434.4,0.05860487]
[1721314239355,2.91072,3435.6,3434.4,0.05860487]
[1721314239572,2.91137,3434.9,3434.4,0.05860487]
[1721314239775,2.91137,3434.9,3434.2,0.55]
[1721314240078,2.91045,3435.9,3434.5,0.05866537]
[1721314240079,2.91112,3435.1,3434.5,0.05866537]
[1721314240281,2.91065,3435.7,3434.6,2.91151]
[1721314240567,2.91094,3435.4,3434.7,0.05857892]
[1721314240772,2.91088,3435.4,3434.8,0.05821724]
[1721314240934,2.91093,3435.4,3434.8,0.05852772]
[1721314241138,2.4154,3436.0,3434.6,0.05821724]
[1721314241453,2.4154,3436.0,3434.7,0.05857254]
[1721314241454,2.91087,3435.4,3434.7,0.05857254]
[1721314241630,2.91087,3435.4,3434.2,0.55]
[1721314241631,2.91137,3434.9,3434.2,0.55]
[1721314241836,2.91137,3434.9,3434.8,0.05852772]
[1721314242132,2.91081,3435.5,3434.1,0.55]
[1721314242133,2.91084,3435.5,3434.1,0.55]
[1721314242338,2.91143,3434.8,3434.2,0.05879507]
[1721314242539,2.91143,3434.8,3433.9,2.91208]
[1721314242540,2.9114,3434.8,3433.9,2.91208]
[1721314242733,2.91121,3435.0,3434.1,2.91189]
[1721314242938,5.8225,3435.0,3434.1,2.91189]
[1721314243176,2.91134,3434.9,3434.2,0.05879507]
[1721314243353,2.91138,3434.8,3434.2,0.05879507]
[1721314243733,2.91138,3434.8,3434.0,2.91199]
[1721314243961,2.91154,3434.6,3433.8,3.4622]
[1721314244168,2.91162,3434.6,3434.1,0.0588399]
[1721314244354,2.9116,3434.6,3433.8,0.55]
[1721314244588,2.91163,3434.5,3433.9,0.05914024]
[1721314244788,2.9112,3435.0,3433.9,0.05914024]
[1721314244991,2.91144,3434.8,3434.0,2.912]
[1721314245184,2.91147,3434.7,3434.0,0.0590954]
[1721314245411,2.91117,3435.1,3434.0,2.9711454]
[1721314245614,2.91071,3435.6,3434.6,2.91154]
[1721314245769,2.91072,3435.6,3434.7,0.05822132]
[1721314245973,2.91072,3435.6,3434.5,2.91157]
[1721314245974,2.4247,3436.0,3434.5,2.96979132]
[1721314246165,2.4247,3436.0,3434.4,3.324]
[1721314246166,0.5912049,3436.6,3434.9,2.91128]
[1721314246377,0.5912049,3436.6,3435.1,3.324]
[1721314246378,2.91035,3436.1,3435.1,3.324]
[1721314246580,2.91051,3435.9,3435.1,6.23504]
[1721314246779,2.91053,3435.8,3435.2,0.05861821]
[1721314247122,2.91095,3435.3,3435.2,0.05861821]
[1721314247279,6.112995,3435.3,3435.2,0.05861821]
[1721314247478,2.4533,3435.5,3433.6,5.6674]
[1721314247479,2.91087,3435.4,3434.6,2.91152]
[1721314247678,2.91087,3435.4,3434.7,0.05822029]
[1721314247878,5.16322,3436.0,3435.2,2.91103]
[1721314248079,5.16322,3436.0,3435.3,0.05820938]
[1721314248080,2.91042,3436.0,3435.3,0.05820938]
[1721314248282,2.91042,3436.0,3435.3,0.11478981]
[1721314248489,2.91042,3436.0,3435.3,0.05820938]
[1721314249012,2.91081,3435.5,3434.6,5.23201]